[Event "*** Titled Tuesday Blitz"]
[Site "Chess.com"]
[Date "2020.05.05"]
[Round "4"]
[White "Pittiplatsh"]
[Black "nubair1198"]
[Result "1-0"]
[WhiteElo "2522"]
[BlackElo "2747"]
[TimeControl "180+1"]
[EndTime "10:39:32 PDT"]
[Termination "Pittiplatsh won by resignation"]

1. e4 {[%clk 0:02:55.4]} 1... g6 {[%clk 0:02:59]} 2. d4 {[%clk 0:02:55]} 2...
Bg7 {[%clk 0:02:59.6]} 3. Nf3 {[%clk 0:02:54.3]} 3... c6 {[%clk 0:03:00.1]} 4.
h3 {[%clk 0:02:52.3]} 4... d6 {[%clk 0:02:59.3]} 5. Nc3 {[%clk 0:02:49.5]} 5...
Nf6 {[%clk 0:02:59.8]} 6. Be3 {[%clk 0:02:48.1]} 6... O-O {[%clk 0:03:00.3]} 7.
Qd2 {[%clk 0:02:48.3]} 7... Qa5 {[%clk 0:02:59.4]} 8. Bd3 {[%clk 0:02:45.3]}
8... e5 {[%clk 0:02:58.7]} 9. Bh6 {[%clk 0:02:41.2]} 9... exd4 {[%clk
0:02:53.4]} 10. Nxd4 {[%clk 0:02:35.7]} 10... Re8 {[%clk 0:02:53.7]} 11. Bxg7
{[%clk 0:02:35.1]} 11... Kxg7 {[%clk 0:02:53.5]} 12. O-O {[%clk 0:02:35.2]}
12... Nbd7 {[%clk 0:02:48.8]} 13. Rae1 {[%clk 0:02:32.8]} 13... Qh5 {[%clk
0:02:41.7]} 14. f4 {[%clk 0:02:26.7]} 14... Nc5 {[%clk 0:02:36]} 15. Qf2 {[%clk
0:02:16.2]} 15... Bd7 {[%clk 0:02:24.6]} 16. e5 {[%clk 0:02:11.6]} 16... Nd5
{[%clk 0:02:16.7]} 17. Nxd5 {[%clk 0:02:08.5]} 17... cxd5 {[%clk 0:02:16.6]} 18.
exd6 {[%clk 0:02:02.3]} 18... Nxd3 {[%clk 0:02:10.4]} 19. cxd3 {[%clk
0:02:01.9]} 19... b6 {[%clk 0:02:07]} 20. Re7 {[%clk 0:01:59.7]} 20... Rxe7
{[%clk 0:02:02.6]} 21. dxe7 {[%clk 0:01:59.8]} 21... Re8 {[%clk 0:01:58.5]} 22.
Re1 {[%clk 0:01:59.8]} 22... f6 {[%clk 0:01:55.1]} 23. Qe3 {[%clk 0:01:19.1]}
23... g5 {[%clk 0:01:50.9]} 24. fxg5 {[%clk 0:01:13.5]} 24... Qxg5 {[%clk
0:01:50]} 25. Ne6+ {[%clk 0:01:05.7]} 25... Bxe6 {[%clk 0:01:49.9]} 26. Qxe6
{[%clk 0:01:02.3]} 26... h5 {[%clk 0:01:48.1]} 27. d4 {[%clk 0:00:59.8]} 27...
h4 {[%clk 0:01:46.7]} 28. Rf1 {[%clk 0:00:57.9]} 28... Qg6 {[%clk 0:01:34.8]}
29. Rf4 {[%clk 0:00:52.5]} 29... f5 {[%clk 0:01:34.7]} 30. Qe5+ {[%clk 0:00:47]}
30... Qf6 {[%clk 0:01:33.7]} 31. Rxf5 {[%clk 0:00:47]} 31... Qxe5 {[%clk
0:01:30.1]} 32. Rxe5 {[%clk 0:00:47.5]} 32... Kf6 {[%clk 0:01:30.4]} 33. g3
{[%clk 0:00:45.9]} 33... hxg3 {[%clk 0:01:21.3]} 34. Kg2 {[%clk 0:00:46.1]}
34... Kf7 {[%clk 0:01:19.8]} 35. h4 {[%clk 0:00:46.2]} 35... a5 {[%clk
0:01:16.4]} 36. a4 {[%clk 0:00:45.9]} 36... Rh8 {[%clk 0:01:09]} 37. e8=Q+
{[%clk 0:00:43.6]} 37... Rxe8 {[%clk 0:01:08.5]} 38. Rxe8 {[%clk 0:00:43.6]}
38... Kxe8 {[%clk 0:01:09.4]} 39. Kxg3 {[%clk 0:00:43.9]} 39... Kf7 {[%clk
0:01:10.3]} 40. Kf4 {[%clk 0:00:44.2]} 40... Ke6 {[%clk 0:01:10.1]} 41. Kg5
{[%clk 0:00:43.3]} 41... Kf7 {[%clk 0:01:08.9]} 42. h5 {[%clk 0:00:43.4]} 42...
Ke6 {[%clk 0:01:08.5]} 43. Kg6 {[%clk 0:00:43.1]} 43... Ke7 {[%clk 0:01:08]} 44.
h6 {[%clk 0:00:43.3]} 44... Kf8 {[%clk 0:01:08.2]} 45. h7 {[%clk 0:00:43.6]} 1-0

[Event "*** Titled Tuesday Blitz"]
[Site "Chess.com"]
[Date "2020.05.05"]
[Round "4"]
[White "MaxLeto"]
[Black "CSB7"]
[Result "0-1"]
[WhiteElo "2329"]
[BlackElo "2543"]
[TimeControl "180+1"]
[EndTime "10:39:33 PDT"]
[Termination "CSB7 won on time"]

1. e4 {[%clk 0:02:47.1]} 1... c5 {[%clk 0:02:59.1]} 2. Nf3 {[%clk 0:02:47.2]}
2... e6 {[%clk 0:02:59.4]} 3. d4 {[%clk 0:02:47.4]} 3... cxd4 {[%clk 0:03:00.3]}
4. Nxd4 {[%clk 0:02:48]} 4... Nf6 {[%clk 0:03:00.2]} 5. Nc3 {[%clk 0:02:48.2]}
5... Nc6 {[%clk 0:03:00.6]} 6. Ndb5 {[%clk 0:02:48.3]} 6... Bc5 {[%clk 0:02:58]}
7. Nd6+ {[%clk 0:02:44.5]} 7... Ke7 {[%clk 0:02:57]} 8. Bf4 {[%clk 0:02:13.1]}
8... e5 {[%clk 0:02:56.6]} 9. Nxc8+ {[%clk 0:01:45.7]} 9... Rxc8 {[%clk
0:02:57.5]} 10. Bg5 {[%clk 0:01:46.3]} 10... Bb4 {[%clk 0:02:30.3]} 11. Qd2
{[%clk 0:01:14]} 11... Qa5 {[%clk 0:01:53.1]} 12. Be2 {[%clk 0:00:30.2]} 12...
Nd4 {[%clk 0:01:36.2]} 13. O-O {[%clk 0:00:23.6]} 13... Bxc3 {[%clk 0:01:29.8]}
14. bxc3 {[%clk 0:00:23.1]} 14... Qxc3 {[%clk 0:01:30.4]} 15. Bd3 {[%clk
0:00:07.2]} 15... Qxd2 {[%clk 0:01:19.7]} 16. Bxd2 {[%clk 0:00:08.1]} 16... Nxc2
{[%clk 0:01:20]} 17. Rab1 {[%clk 0:00:05.7]} 17... b6 {[%clk 0:01:19.9]} 18.
Rfc1 {[%clk 0:00:03.7]} 18... Nd4 {[%clk 0:01:19.6]} 19. Bb4+ {[%clk 0:00:03.3]}
19... d6 {[%clk 0:01:19.1]} 20. f3 {[%clk 0:00:03.3]} 20... Nd7 {[%clk
0:01:15.8]} 21. Bc4 {[%clk 0:00:02.8]} 21... Nc5 {[%clk 0:01:11.7]} 22. Kf2
{[%clk 0:00:01.7]} 22... Rc7 {[%clk 0:01:10.9]} 23. Ke3 {[%clk 0:00:01.8]} 23...
Rhc8 {[%clk 0:01:09.9]} 24. Bd5 {[%clk 0:00:02.3]} 24... Na4 {[%clk 0:01:03.2]}
25. Rxc7+ {[%clk 0:00:01.9]} 25... Rxc7 {[%clk 0:01:04.1]} 26. a3 {[%clk
0:00:01.9]} 26... Nc3 {[%clk 0:01:02.5]} 27. Rc1 {[%clk 0:00:01.1]} 27... Nxd5+
{[%clk 0:01:02.1]} 0-1

[Event "*** Titled Tuesday Blitz"]
[Site "Chess.com"]
[Date "2020.05.05"]
[Round "4"]
[White "Undisputed92"]
[Black "BabyBoss31"]
[Result "1-0"]
[WhiteElo "2583"]
[BlackElo "2292"]
[TimeControl "180+1"]
[EndTime "10:39:34 PDT"]
[Termination "Undisputed92 won by resignation"]

1. e4 {[%clk 0:03:00.9]} 1... e6 {[%clk 0:03:00.2]} 2. d4 {[%clk 0:03:00.3]}
2... d5 {[%clk 0:03:00.9]} 3. Nc3 {[%clk 0:02:59.9]} 3... Nf6 {[%clk 0:03:01.4]}
4. Bg5 {[%clk 0:02:57.5]} 4... Bb4 {[%clk 0:03:01]} 5. e5 {[%clk 0:02:57]} 5...
h6 {[%clk 0:03:01.1]} 6. Bh4 {[%clk 0:02:56.5]} 6... g5 {[%clk 0:02:57.5]} 7.
Bg3 {[%clk 0:02:56.4]} 7... Ne4 {[%clk 0:02:58]} 8. Ne2 {[%clk 0:02:56.6]} 8...
c5 {[%clk 0:02:39.9]} 9. a3 {[%clk 0:02:56.3]} 9... Bxc3+ {[%clk 0:02:36]} 10.
Nxc3 {[%clk 0:02:55.9]} 10... Nxc3 {[%clk 0:02:31.2]} 11. bxc3 {[%clk
0:02:55.4]} 11... Qa5 {[%clk 0:02:31.7]} 12. Qd2 {[%clk 0:02:51.5]} 12... Nc6
{[%clk 0:02:30.7]} 13. dxc5 {[%clk 0:02:51.4]} 13... Qxc5 {[%clk 0:02:26.9]} 14.
h4 {[%clk 0:02:51.7]} 14... Rg8 {[%clk 0:02:20.3]} 15. hxg5 {[%clk 0:02:51.5]}
15... hxg5 {[%clk 0:02:21.2]} 16. Rh5 {[%clk 0:02:49.2]} 16... Bd7 {[%clk
0:02:09.6]} 17. Rb1 {[%clk 0:02:33.9]} 17... O-O-O {[%clk 0:02:05.8]} 18. a4
{[%clk 0:02:24.6]} 18... d4 {[%clk 0:01:56.1]} 19. cxd4 {[%clk 0:02:13.5]} 19...
Nxd4 {[%clk 0:01:50.6]} 20. Bd3 {[%clk 0:01:46]} 20... Bxa4 {[%clk 0:01:40.9]}
21. Rb2 {[%clk 0:01:36.6]} 21... Kb8 {[%clk 0:01:22.1]} 22. Kf1 {[%clk 0:01:35]}
22... Nxc2 {[%clk 0:00:46.9]} 23. Rxc2 {[%clk 0:01:31.3]} 23... Qd5 {[%clk
0:00:23.2]} 24. Ke2 {[%clk 0:01:19.7]} 24... Bxc2 {[%clk 0:00:23]} 25. Qxc2
{[%clk 0:01:19.1]} 25... Rc8 {[%clk 0:00:15.4]} 26. Qb1 {[%clk 0:01:11.1]} 26...
Rgd8 {[%clk 0:00:15.4]} 27. Rh1 {[%clk 0:01:06.9]} 27... Qxg2 {[%clk 0:00:14.1]}
28. Be4 {[%clk 0:01:05.5]} 1-0

[Event "*** Titled Tuesday Blitz"]
[Site "Chess.com"]
[Date "2020.05.05"]
[Round "4"]
[White "emperor87"]
[Black "Ladislav1969"]
[Result "0-1"]
[WhiteElo "2565"]
[BlackElo "2357"]
[TimeControl "180+1"]
[EndTime "10:39:34 PDT"]
[Termination "Ladislav1969 won by resignation"]

1. e4 {[%clk 0:03:00.9]} 1... c5 {[%clk 0:02:59.7]} 2. Nf3 {[%clk 0:03:01]} 2...
e6 {[%clk 0:03:00]} 3. Nc3 {[%clk 0:02:59.8]} 3... Nc6 {[%clk 0:02:59.1]} 4. g3
{[%clk 0:02:59.4]} 4... g6 {[%clk 0:02:57.3]} 5. Bg2 {[%clk 0:02:59]} 5... Bg7
{[%clk 0:02:57.4]} 6. h4 {[%clk 0:02:58.3]} 6... h5 {[%clk 0:02:48.8]} 7. d3
{[%clk 0:02:54.3]} 7... d5 {[%clk 0:02:35.6]} 8. O-O {[%clk 0:02:52.8]} 8... d4
{[%clk 0:02:35.1]} 9. Ne2 {[%clk 0:02:52.3]} 9... e5 {[%clk 0:02:31.8]} 10. c3
{[%clk 0:02:50.3]} 10... Nh6 {[%clk 0:02:24.3]} 11. Nh2 {[%clk 0:02:47.5]} 11...
Ng4 {[%clk 0:02:22.3]} 12. Nxg4 {[%clk 0:02:44.2]} 12... Bxg4 {[%clk 0:02:21]}
13. f3 {[%clk 0:02:43.3]} 13... Be6 {[%clk 0:02:18.8]} 14. f4 {[%clk 0:02:43.1]}
14... Qd7 {[%clk 0:02:15.6]} 15. cxd4 {[%clk 0:02:39.1]} 15... cxd4 {[%clk
0:02:04]} 16. Bd2 {[%clk 0:02:22.7]} 16... Bg4 {[%clk 0:02:03.8]} 17. Rf2 {[%clk
0:02:17.8]} 17... O-O {[%clk 0:01:55.1]} 18. Qf1 {[%clk 0:02:13.9]} 18... Bh6
{[%clk 0:01:44.2]} 19. Rd1 {[%clk 0:02:08.1]} 19... exf4 {[%clk 0:01:31.9]} 20.
Bxf4 {[%clk 0:02:06.2]} 20... Bxf4 {[%clk 0:01:31.2]} 21. gxf4 {[%clk
0:02:02.5]} 21... Qe7 {[%clk 0:01:29.5]} 22. Rc1 {[%clk 0:01:51.1]} 22... Qxh4
{[%clk 0:01:28.8]} 23. e5 {[%clk 0:01:48.9]} 23... Rac8 {[%clk 0:01:25.4]} 24.
Bxc6 {[%clk 0:01:45.4]} 24... Rxc6 {[%clk 0:01:18.2]} 25. Rxc6 {[%clk
0:01:44.6]} 25... bxc6 {[%clk 0:01:17.3]} 26. Nxd4 {[%clk 0:01:43.8]} 26... Bh3
{[%clk 0:01:09.7]} 27. Qe2 {[%clk 0:01:36.3]} 27... Qg3+ {[%clk 0:01:07.3]} 28.
Kh1 {[%clk 0:01:35.8]} 28... Bg4 {[%clk 0:01:01]} 29. Qf1 {[%clk 0:00:34.9]}
29... Rd8 {[%clk 0:01:01]} 30. Ne2 {[%clk 0:00:34.9]} 30... Qxd3 {[%clk
0:00:59.3]} 31. Nc3 {[%clk 0:00:34.6]} 31... Qg3 {[%clk 0:00:53.7]} 32. Rg2
{[%clk 0:00:34.7]} 32... Bf3 {[%clk 0:00:51.3]} 0-1

[Event "*** Titled Tuesday Blitz"]
[Site "Chess.com"]
[Date "2020.05.05"]
[Round "4"]
[White "GoValya"]
[Black "Jadeit90"]
[Result "1-0"]
[WhiteElo "2179"]
[BlackElo "2381"]
[TimeControl "180+1"]
[EndTime "10:39:36 PDT"]
[Termination "GoValya won by resignation"]

1. d4 {[%clk 0:03:00.9]} 1... g6 {[%clk 0:02:56.6]} 2. Nf3 {[%clk 0:03:00.3]}
2... Bg7 {[%clk 0:02:54.8]} 3. g3 {[%clk 0:03:00.6]} 3... c5 {[%clk 0:02:55.1]}
4. d5 {[%clk 0:02:59.5]} 4... d6 {[%clk 0:02:53.4]} 5. Bg2 {[%clk 0:02:59.3]}
5... Nf6 {[%clk 0:02:53]} 6. O-O {[%clk 0:02:59]} 6... O-O {[%clk 0:02:52.6]} 7.
c4 {[%clk 0:02:59.1]} 7... e6 {[%clk 0:02:51.4]} 8. dxe6 {[%clk 0:02:59.4]} 8...
Bxe6 {[%clk 0:02:51.3]} 9. Ng5 {[%clk 0:02:59.6]} 9... Bc8 {[%clk 0:02:49.8]}
10. Nc3 {[%clk 0:02:59.4]} 10... Nc6 {[%clk 0:02:50]} 11. Bf4 {[%clk 0:02:57]}
11... Qa5 {[%clk 0:02:47.2]} 12. Nb5 {[%clk 0:02:46.2]} 12... h6 {[%clk
0:02:43.5]} 13. Nf3 {[%clk 0:02:36.9]} 13... Ne4 {[%clk 0:02:32.1]} 14. Nd2
{[%clk 0:02:15.8]} 14... Nxd2 {[%clk 0:02:28.8]} 15. Bxd2 {[%clk 0:02:10.5]}
15... Qb6 {[%clk 0:02:25.4]} 16. Nxd6 {[%clk 0:02:03.6]} 16... Qxb2 {[%clk
0:02:22.6]} 17. Rb1 {[%clk 0:01:58.6]} 17... Qxa2 {[%clk 0:02:18.6]} 18. Bd5
{[%clk 0:01:49.6]} 18... Ne7 {[%clk 0:01:53.2]} 19. Bxb7 {[%clk 0:01:43]} 19...
Bxb7 {[%clk 0:01:52]} 20. Rxb7 {[%clk 0:01:41.8]} 20... Nc6 {[%clk 0:01:45]} 21.
Be3 {[%clk 0:01:33.8]} 21... Nd4 {[%clk 0:01:42.5]} 22. Re1 {[%clk 0:01:21.9]}
22... Rad8 {[%clk 0:01:35.3]} 23. Bxd4 {[%clk 0:01:11.1]} 23... Rxd6 {[%clk
0:01:29.1]} 24. Qa1 {[%clk 0:01:10.2]} 24... Qxa1 {[%clk 0:01:23.8]} 25. Bxa1
{[%clk 0:01:09.7]} 25... Bxa1 {[%clk 0:01:18.9]} 26. Rxa1 {[%clk 0:01:08.7]}
26... Rd4 {[%clk 0:01:19.1]} 27. Ra4 {[%clk 0:01:01]} 27... Re8 {[%clk
0:00:56.7]} 28. e3 {[%clk 0:01:00.3]} 28... Rd2 {[%clk 0:00:55.1]} 29. Raxa7
{[%clk 0:00:59.3]} 29... Rf8 {[%clk 0:00:55.3]} 30. Rc7 {[%clk 0:00:51.1]} 30...
Rb8 {[%clk 0:00:54.9]} 31. Rxf7 {[%clk 0:00:47.1]} 31... Rbb2 {[%clk 0:00:53.7]}
32. Rg7+ {[%clk 0:00:45.2]} 32... Kf8 {[%clk 0:00:53.5]} 33. Raf7+ {[%clk
0:00:45.1]} 33... Ke8 {[%clk 0:00:53.6]} 34. Rf4 {[%clk 0:00:42.2]} 1-0

[Event "*** Titled Tuesday Blitz"]
[Site "Chess.com"]
[Date "2020.05.05"]
[Round "4"]
[White "mc4chess"]
[Black "ItsCheckM8Mate"]
[Result "0-1"]
[WhiteElo "2436"]
[BlackElo "2274"]
[TimeControl "180+1"]
[EndTime "10:39:37 PDT"]
[Termination "ItsCheckM8Mate won on time"]

1. e4 {[%clk 0:02:45.4]} 1... e5 {[%clk 0:02:59.7]} 2. Nf3 {[%clk 0:02:45.4]}
2... Nc6 {[%clk 0:02:59.8]} 3. Bb5 {[%clk 0:02:45.8]} 3... g6 {[%clk 0:02:59.9]}
4. d4 {[%clk 0:02:44.1]} 4... exd4 {[%clk 0:02:58.9]} 5. Nxd4 {[%clk 0:02:44.2]}
5... Bg7 {[%clk 0:02:52]} 6. Be3 {[%clk 0:02:42]} 6... Nge7 {[%clk 0:02:51.9]}
7. O-O {[%clk 0:02:41]} 7... O-O {[%clk 0:02:51.5]} 8. c4 {[%clk 0:02:34.6]}
8... d6 {[%clk 0:02:48.4]} 9. Nc3 {[%clk 0:02:33.2]} 9... a6 {[%clk 0:02:33.8]}
10. Ba4 {[%clk 0:02:31.4]} 10... Ne5 {[%clk 0:02:13.5]} 11. Qe2 {[%clk
0:02:20.8]} 11... Ng4 {[%clk 0:02:09.3]} 12. Rad1 {[%clk 0:01:56.6]} 12... Nxe3
{[%clk 0:02:07.6]} 13. Qxe3 {[%clk 0:01:57.5]} 13... Bd7 {[%clk 0:02:02.7]} 14.
Bxd7 {[%clk 0:01:49]} 14... Qxd7 {[%clk 0:02:02.7]} 15. Kh1 {[%clk 0:01:42.7]}
15... Nc6 {[%clk 0:01:58.2]} 16. Nxc6 {[%clk 0:01:35.8]} 16... Qxc6 {[%clk
0:01:57.2]} 17. Nd5 {[%clk 0:01:34.1]} 17... Rae8 {[%clk 0:01:51.5]} 18. b3
{[%clk 0:00:43.8]} 18... f5 {[%clk 0:01:50.5]} 19. f3 {[%clk 0:00:43.6]} 19...
Kh8 {[%clk 0:01:46.6]} 20. Qd3 {[%clk 0:00:40.4]} 20... fxe4 {[%clk 0:01:41.1]}
21. fxe4 {[%clk 0:00:41.3]} 21... Qc5 {[%clk 0:01:30.3]} 22. h3 {[%clk
0:00:23.4]} 22... a5 {[%clk 0:01:29.1]} 23. Ne3 {[%clk 0:00:15.7]} 23... Qe5
{[%clk 0:01:24.6]} 24. Ng4 {[%clk 0:00:15.3]} 24... Qxe4 {[%clk 0:01:18.2]} 25.
Rxf8+ {[%clk 0:00:11.2]} 25... Bxf8 {[%clk 0:01:17.7]} 26. Qc3+ {[%clk
0:00:11.3]} 26... Bg7 {[%clk 0:01:17.2]} 27. Qg3 {[%clk 0:00:08.1]} 27... Qe2
{[%clk 0:01:10.5]} 28. Qf2 {[%clk 0:00:01.9]} 28... Qxd1+ {[%clk 0:01:09.7]} 0-1

[Event "*** Titled Tuesday Blitz"]
[Site "Chess.com"]
[Date "2020.05.05"]
[Round "4"]
[White "ajian"]
[Black "DonBroca"]
[Result "1-0"]
[WhiteElo "2397"]
[BlackElo "2112"]
[TimeControl "180+1"]
[EndTime "10:39:37 PDT"]
[Termination "ajian won by resignation"]

1. d4 {[%clk 0:03:00.9]} 1... Nf6 {[%clk 0:02:59.3]} 2. c4 {[%clk 0:03:01.1]}
2... g6 {[%clk 0:02:59.7]} 3. Nc3 {[%clk 0:03:01.3]} 3... d6 {[%clk 0:03:00.2]}
4. e4 {[%clk 0:03:01.4]} 4... Bg7 {[%clk 0:03:01.1]} 5. Nf3 {[%clk 0:03:01.6]}
5... O-O {[%clk 0:03:01.3]} 6. Be2 {[%clk 0:03:02]} 6... e5 {[%clk 0:03:00.9]}
7. d5 {[%clk 0:03:02.4]} 7... a5 {[%clk 0:02:59.5]} 8. Bg5 {[%clk 0:03:02.1]}
8... Na6 {[%clk 0:02:59.3]} 9. Nd2 {[%clk 0:03:00.4]} 9... Nc5 {[%clk
0:02:38.8]} 10. O-O {[%clk 0:02:58.3]} 10... h6 {[%clk 0:02:36.7]} 11. Be3
{[%clk 0:02:57.7]} 11... b6 {[%clk 0:02:35.8]} 12. b3 {[%clk 0:02:52.8]} 12...
Qe7 {[%clk 0:02:20.7]} 13. a3 {[%clk 0:02:51.8]} 13... Ne8 {[%clk 0:02:10.8]}
14. b4 {[%clk 0:02:48]} 14... Nd7 {[%clk 0:02:08.5]} 15. f3 {[%clk 0:02:43.3]}
15... f5 {[%clk 0:02:06]} 16. Nb3 {[%clk 0:02:39.4]} 16... f4 {[%clk 0:02:03.8]}
17. Bf2 {[%clk 0:02:39.7]} 17... axb4 {[%clk 0:01:42.7]} 18. axb4 {[%clk
0:02:39.1]} 18... Bb7 {[%clk 0:01:43]} 19. Qc2 {[%clk 0:02:11.1]} 19... Nef6
{[%clk 0:01:41.8]} 20. c5 {[%clk 0:02:08]} 20... bxc5 {[%clk 0:01:18.9]} 21.
bxc5 {[%clk 0:02:08.2]} 21... dxc5 {[%clk 0:01:16.7]} 22. Na5 {[%clk 0:02:06.2]}
22... Rfb8 {[%clk 0:01:00.3]} 23. Nb5 {[%clk 0:01:28.7]} 23... Ne8 {[%clk
0:00:47]} 24. Rfb1 {[%clk 0:01:18.3]} 24... Ba6 {[%clk 0:00:39.1]} 25. Nc6
{[%clk 0:01:12.7]} 25... Qf6 {[%clk 0:00:37.3]} 26. Nxb8 {[%clk 0:01:01.5]}
26... Rxb8 {[%clk 0:00:38.2]} 27. d6 {[%clk 0:00:49.2]} 27... Bxb5 {[%clk
0:00:30.6]} 28. Bxb5 {[%clk 0:00:48.9]} 1-0

[Event "*** Titled Tuesday Blitz"]
[Site "Chess.com"]
[Date "2020.05.05"]
[Round "4"]
[White "Bodnar_Mykola"]
[Black "827883"]
[Result "1-0"]
[WhiteElo "2430"]
[BlackElo "2220"]
[TimeControl "180+1"]
[EndTime "10:39:38 PDT"]
[Termination "Bodnar_Mykola won by resignation"]

1. d4 {[%clk 0:03:00.9]} 1... d5 {[%clk 0:02:59.7]} 2. c4 {[%clk 0:02:58.9]}
2... e6 {[%clk 0:02:59.7]} 3. Nc3 {[%clk 0:02:57.8]} 3... c6 {[%clk 0:02:59.9]}
4. cxd5 {[%clk 0:02:54.5]} 4... exd5 {[%clk 0:02:59.8]} 5. Qc2 {[%clk
0:02:52.7]} 5... g6 {[%clk 0:02:57.2]} 6. Bf4 {[%clk 0:02:52.1]} 6... Bd6 {[%clk
0:02:55.7]} 7. Bxd6 {[%clk 0:02:50.4]} 7... Qxd6 {[%clk 0:02:55.7]} 8. e3 {[%clk
0:02:50.6]} 8... Bf5 {[%clk 0:02:53.4]} 9. Bd3 {[%clk 0:02:51]} 9... Bxd3 {[%clk
0:02:53]} 10. Qxd3 {[%clk 0:02:51.9]} 10... Nf6 {[%clk 0:02:52.1]} 11. Nf3
{[%clk 0:02:52.4]} 11... O-O {[%clk 0:02:51.8]} 12. Ne5 {[%clk 0:02:50.8]} 12...
Nbd7 {[%clk 0:02:50.8]} 13. f4 {[%clk 0:02:51]} 13... Rfe8 {[%clk 0:02:41.9]}
14. O-O {[%clk 0:02:50.1]} 14... Ne4 {[%clk 0:02:30.7]} 15. Nxe4 {[%clk
0:02:47.3]} 15... dxe4 {[%clk 0:02:30.6]} 16. Qb3 {[%clk 0:02:46.6]} 16... Nxe5
{[%clk 0:02:26.3]} 17. fxe5 {[%clk 0:02:44.2]} 17... Qe7 {[%clk 0:02:25.5]} 18.
Rf6 {[%clk 0:02:42.2]} 18... Rad8 {[%clk 0:01:49.5]} 19. Raf1 {[%clk 0:02:40.1]}
19... Rf8 {[%clk 0:01:49.4]} 20. R1f4 {[%clk 0:02:36]} 20... c5 {[%clk
0:01:37.7]} 21. Rxe4 {[%clk 0:02:20.3]} 21... cxd4 {[%clk 0:01:37.1]} 22. exd4
{[%clk 0:02:21]} 22... Qc7 {[%clk 0:01:31]} 23. h3 {[%clk 0:02:08.1]} 23... Qc1+
{[%clk 0:01:19.9]} 24. Kh2 {[%clk 0:02:07.5]} 24... Qd2 {[%clk 0:01:07.3]} 25.
Qc3 {[%clk 0:01:44.1]} 25... Qd1 {[%clk 0:00:50.7]} 26. Ref4 {[%clk 0:01:39.6]}
26... Rc8 {[%clk 0:00:33.2]} 27. Rxf7 {[%clk 0:01:38.7]} 27... Rxc3 {[%clk
0:00:29.4]} 28. Rxf8+ {[%clk 0:01:38.5]} 28... Kg7 {[%clk 0:00:29.7]} 29. bxc3
{[%clk 0:01:37.5]} 29... Qc2 {[%clk 0:00:28.3]} 30. e6 {[%clk 0:01:35.5]} 30...
Qe2 {[%clk 0:00:25.6]} 31. d5 {[%clk 0:01:34.2]} 31... g5 {[%clk 0:00:24.6]} 32.
R4f5 {[%clk 0:01:26]} 32... g4 {[%clk 0:00:22.3]} 33. hxg4 {[%clk 0:01:20.7]}
33... Qxg4 {[%clk 0:00:22.1]} 34. R8f7+ {[%clk 0:01:18.1]} 34... Kg8 {[%clk
0:00:21.1]} 35. e7 {[%clk 0:01:11.8]} 35... Qh4+ {[%clk 0:00:20]} 36. Kg1 {[%clk
0:01:11.2]} 36... Qe1+ {[%clk 0:00:20.3]} 37. Rf1 {[%clk 0:01:11.3]} 37... Qe3+
{[%clk 0:00:20.6]} 38. R1f2 {[%clk 0:01:10.3]} 38... Qe1+ {[%clk 0:00:20.8]} 39.
Kh2 {[%clk 0:01:09.9]} 39... Qe5+ {[%clk 0:00:20.4]} 40. g3 {[%clk 0:01:09.1]}
40... h5 {[%clk 0:00:18.1]} 41. Rf8+ {[%clk 0:01:08.3]} 41... Kg7 {[%clk
0:00:18.4]} 42. e8=Q {[%clk 0:01:08.8]} 1-0

[Event "*** Titled Tuesday Blitz"]
[Site "Chess.com"]
[Date "2020.05.05"]
[Round "4"]
[White "Maghalashvili"]
[Black "Mischuk_D"]
[Result "1-0"]
[WhiteElo "2810"]
[BlackElo "2611"]
[TimeControl "180+1"]
[EndTime "10:39:41 PDT"]
[Termination "Maghalashvili won by resignation"]

1. Nf3 {[%clk 0:03:00.9]} 1... d5 {[%clk 0:02:58.7]} 2. g3 {[%clk 0:03:00.8]}
2... g6 {[%clk 0:02:59]} 3. c4 {[%clk 0:02:58.2]} 3... c6 {[%clk 0:02:58.7]} 4.
Bg2 {[%clk 0:02:57.5]} 4... Bg7 {[%clk 0:02:58.6]} 5. O-O {[%clk 0:02:53.6]}
5... Nf6 {[%clk 0:02:58.6]} 6. b3 {[%clk 0:02:44.3]} 6... Ne4 {[%clk 0:02:57.5]}
7. d4 {[%clk 0:02:42.5]} 7... O-O {[%clk 0:02:57.3]} 8. Bb2 {[%clk 0:02:40.6]}
8... Bf5 {[%clk 0:02:57.4]} 9. Nh4 {[%clk 0:02:31.5]} 9... Be6 {[%clk
0:02:56.8]} 10. Qc2 {[%clk 0:02:27.9]} 10... Nf6 {[%clk 0:02:50.6]} 11. Nd2
{[%clk 0:02:22.3]} 11... a5 {[%clk 0:02:50.1]} 12. e4 {[%clk 0:02:19.8]} 12...
dxe4 {[%clk 0:02:49.8]} 13. Nxe4 {[%clk 0:02:19.6]} 13... Nxe4 {[%clk
0:02:49.9]} 14. Bxe4 {[%clk 0:02:10.9]} 14... Bh3 {[%clk 0:02:47.8]} 15. Rfe1
{[%clk 0:02:04.8]} 15... Nd7 {[%clk 0:02:47.5]} 16. Rad1 {[%clk 0:01:59.8]}
16... Nf6 {[%clk 0:02:46.6]} 17. Bh1 {[%clk 0:01:37.8]} 17... a4 {[%clk
0:02:45.5]} 18. bxa4 {[%clk 0:01:30.6]} 18... e6 {[%clk 0:02:30.6]} 19. Bc3
{[%clk 0:01:26.9]} 19... Re8 {[%clk 0:02:07.5]} 20. Rb1 {[%clk 0:01:24.2]} 20...
Qc7 {[%clk 0:02:06]} 21. a5 {[%clk 0:01:16.9]} 21... Red8 {[%clk 0:02:06.1]} 22.
Qb2 {[%clk 0:01:13.1]} 22... Rd7 {[%clk 0:02:04.3]} 23. d5 {[%clk 0:01:08.9]}
23... Ne8 {[%clk 0:02:00.3]} 24. Bxg7 {[%clk 0:01:05]} 24... Nxg7 {[%clk
0:02:00.5]} 25. dxc6 {[%clk 0:00:58.1]} 25... bxc6 {[%clk 0:02:01.4]} 26. Qb6
{[%clk 0:00:58.4]} 26... Nf5 {[%clk 0:02:00.5]} 27. Bxc6 {[%clk 0:00:55.7]}
27... Nxh4 {[%clk 0:01:57.1]} 28. Qxc7 {[%clk 0:00:53.7]} 28... Rxc7 {[%clk
0:01:55]} 29. Bxa8 {[%clk 0:00:54.4]} 29... Nf5 {[%clk 0:01:28.5]} 30. Bg2
{[%clk 0:00:52.7]} 30... Bxg2 {[%clk 0:01:27.4]} 31. Kxg2 {[%clk 0:00:52.7]}
31... Rxc4 {[%clk 0:01:28.3]} 32. a6 {[%clk 0:00:42.4]} 32... Ra4 {[%clk
0:01:28.2]} 33. Rb6 {[%clk 0:00:42.1]} 33... Rxa2 {[%clk 0:01:27.5]} 34. g4
{[%clk 0:00:42.2]} 34... Ne7 {[%clk 0:01:26.2]} 35. Reb1 {[%clk 0:00:38.3]}
35... Kg7 {[%clk 0:01:24.2]} 36. Rb7 {[%clk 0:00:37.1]} 36... Nc6 {[%clk
0:01:24.2]} 37. R1b6 {[%clk 0:00:35.8]} 37... Na5 {[%clk 0:01:24.5]} 38. Rc7
{[%clk 0:00:32.1]} 38... Nb3 {[%clk 0:01:14.4]} 39. Rxb3 {[%clk 0:00:31.2]}
39... Rxa6 {[%clk 0:01:15.3]} 40. Rbb7 {[%clk 0:00:31.1]} 1-0